[Event "*** Titled Tuesday Blitz"]
[Site "Chess.com"]
[Date "2020.03.03"]
[Round "7"]
[White "DonBroca"]
[Black "Rakesh"]
[Result "1-0"]
[WhiteElo "2047"]
[BlackElo "2344"]
[TimeControl "180+1"]
[EndTime "14:15:13 PST"]
[Termination "DonBroca won on time"]

1. e4 {[%clk 0:03:00.9]} 1... c6 {[%clk 0:00:46.7]} 2. d4 {[%clk 0:02:35.2]}
2... d5 {[%clk 0:00:47.6]} 3. e5 {[%clk 0:02:36.1]} 3... c5 {[%clk 0:00:44.9]}
4. dxc5 {[%clk 0:02:33.9]} 4... Nc6 {[%clk 0:00:45.8]} 5. f4 {[%clk 0:02:17.4]}
5... Bf5 {[%clk 0:00:43.5]} 6. Nf3 {[%clk 0:02:06.6]} 6... e6 {[%clk 0:00:40.4]}
7. Be3 {[%clk 0:01:57.3]} 7... Nge7 {[%clk 0:00:38.5]} 8. Bd3 {[%clk 0:01:47.4]}
8... Bxd3 {[%clk 0:00:37.7]} 9. Qxd3 {[%clk 0:01:48.3]} 9... Nf5 {[%clk
0:00:37.8]} 10. Bf2 {[%clk 0:01:24.4]} 10... Qa5+ {[%clk 0:00:28.1]} 11. Qd2
{[%clk 0:01:24.7]} 11... Bxc5 {[%clk 0:00:27.4]} 12. Qxa5 {[%clk 0:01:21.3]}
12... Bxf2+ {[%clk 0:00:26.5]} 13. Kxf2 {[%clk 0:01:22.2]} 13... Nxa5 {[%clk
0:00:27.4]} 14. g4 {[%clk 0:01:18.5]} 14... Ne7 {[%clk 0:00:25.8]} 15. Nc3
{[%clk 0:01:18.7]} 15... Rc8 {[%clk 0:00:24.8]} 16. Nd4 {[%clk 0:01:09.3]} 16...
Nc4 {[%clk 0:00:21.4]} 17. Ncb5 {[%clk 0:01:06.6]} 17... O-O {[%clk 0:00:19.4]}
18. Nxa7 {[%clk 0:00:58.4]} 18... Ra8 {[%clk 0:00:16.7]} 19. Nab5 {[%clk
0:00:58.4]} 19... Nxb2 {[%clk 0:00:17.1]} 20. Nd6 {[%clk 0:00:55.3]} 20... Ra4
{[%clk 0:00:12.5]} 21. Rhb1 {[%clk 0:00:22.5]} 1-0

[Event "*** Titled Tuesday Blitz"]
[Site "Chess.com"]
[Date "2020.03.03"]
[Round "7"]
[White "Parhamov"]
[Black "GMWSO"]
[Result "1-0"]
[WhiteElo "3063"]
[BlackElo "3106"]
[TimeControl "180+1"]
[EndTime "14:15:14 PST"]
[Termination "Parhamov won by resignation"]

1. e4 {[%clk 0:03:00.9]} 1... e5 {[%clk 0:02:56.9]} 2. Nf3 {[%clk 0:03:00.3]}
2... Nc6 {[%clk 0:02:57.3]} 3. Bc4 {[%clk 0:03:00.1]} 3... Bc5 {[%clk
0:02:56.4]} 4. c3 {[%clk 0:02:59.8]} 4... Nf6 {[%clk 0:02:56.8]} 5. d4 {[%clk
0:02:59.6]} 5... exd4 {[%clk 0:02:57.7]} 6. e5 {[%clk 0:02:59.6]} 6... d5 {[%clk
0:02:57.4]} 7. Bb5 {[%clk 0:02:58.1]} 7... Ne4 {[%clk 0:02:57.7]} 8. cxd4 {[%clk
0:02:58.3]} 8... Bb6 {[%clk 0:02:57.3]} 9. Nc3 {[%clk 0:02:58.7]} 9... O-O
{[%clk 0:02:57.8]} 10. Be3 {[%clk 0:02:58]} 10... Bg4 {[%clk 0:02:57.6]} 11. h3
{[%clk 0:02:56.1]} 11... Bh5 {[%clk 0:02:57.3]} 12. Qb3 {[%clk 0:02:53.1]} 12...
Bxf3 {[%clk 0:02:32.9]} 13. gxf3 {[%clk 0:02:52.7]} 13... Nxf2 {[%clk
0:02:20.7]} 14. Bxf2 {[%clk 0:02:48.3]} 14... Nxd4 {[%clk 0:02:16.4]} 15. Bxd4
{[%clk 0:02:48.3]} 15... Qh4+ {[%clk 0:02:08.9]} 16. Kd1 {[%clk 0:02:47.8]}
16... Qxd4+ {[%clk 0:02:00.3]} 17. Kc2 {[%clk 0:02:45.6]} 17... Qf2+ {[%clk
0:01:44.7]} 18. Ne2 {[%clk 0:02:44.4]} 18... Qc5+ {[%clk 0:01:35.7]} 19. Kb1
{[%clk 0:02:41.1]} 19... Rad8 {[%clk 0:01:29.2]} 20. Bd3 {[%clk 0:02:39.9]}
20... Qe3 {[%clk 0:01:26.4]} 21. f4 {[%clk 0:02:39.2]} 21... g6 {[%clk
0:01:24.7]} 22. Rd1 {[%clk 0:02:21.4]} 22... c5 {[%clk 0:01:22]} 23. Bb5 {[%clk
0:02:19.7]} 23... Qf2 {[%clk 0:01:19.8]} 24. Qg3 {[%clk 0:02:18.6]} 24... Qxg3
{[%clk 0:01:11.8]} 25. Nxg3 {[%clk 0:02:18.7]} 25... c4 {[%clk 0:01:12.7]} 26.
Ne2 {[%clk 0:02:18.6]} 26... Be3 {[%clk 0:01:07.8]} 27. Nc3 {[%clk 0:02:13.6]}
27... d4 {[%clk 0:00:51.7]} 28. Ne4 {[%clk 0:02:13.3]} 28... Bxf4 {[%clk
0:00:50.3]} 29. e6 {[%clk 0:02:11.2]} 29... fxe6 {[%clk 0:00:49.1]} 30. Bxc4
{[%clk 0:02:10.7]} 30... Kh8 {[%clk 0:00:40.3]} 31. a4 {[%clk 0:02:07.5]} 31...
e5 {[%clk 0:00:38]} 32. Ra3 {[%clk 0:02:06.8]} 32... Rc8 {[%clk 0:00:37.3]} 33.
Bd5 {[%clk 0:02:05.9]} 33... b6 {[%clk 0:00:36.8]} 34. a5 {[%clk 0:02:04.2]}
34... Be3 {[%clk 0:00:33]} 35. axb6 {[%clk 0:02:03]} 35... axb6 {[%clk
0:00:33.9]} 36. Ra7 {[%clk 0:02:01.3]} 36... Rcd8 {[%clk 0:00:33.7]} 37. Bc4
{[%clk 0:02:00.9]} 37... Rc8 {[%clk 0:00:32.5]} 38. Nd6 {[%clk 0:01:54.5]} 38...
Ra8 {[%clk 0:00:32.4]} 39. Rd7 {[%clk 0:01:50.2]} 39... Rf2 {[%clk 0:00:22.3]}
40. Nf7+ {[%clk 0:01:46.6]} 40... Kg7 {[%clk 0:00:17.3]} 41. Nxe5+ {[%clk
0:01:46.6]} 41... Kh8 {[%clk 0:00:17.1]} 42. Nf7+ {[%clk 0:01:39.3]} 42... Kg7
{[%clk 0:00:16.5]} 43. h4 {[%clk 0:01:38.7]} 43... h5 {[%clk 0:00:14.9]} 44.
Ng5+ {[%clk 0:01:33.5]} 44... Kf8 {[%clk 0:00:10.8]} 45. Ne6+ {[%clk 0:01:31.8]}
45... Ke8 {[%clk 0:00:10.8]} 46. Bb5 {[%clk 0:01:31.4]} 1-0

[Event "*** Titled Tuesday Blitz"]
[Site "Chess.com"]
[Date "2020.03.03"]
[Round "7"]
[White "ZEN-22"]
[Black "Kobalia"]
[Result "0-1"]
[WhiteElo "2402"]
[BlackElo "2619"]
[TimeControl "180+1"]
[EndTime "14:15:18 PST"]
[Termination "Kobalia won by checkmate"]

1. e4 {[%clk 0:00:28.7]} 1... c5 {[%clk 0:02:55.4]} 2. Bc4 {[%clk 0:00:28.8]}
2... e6 {[%clk 0:02:54.7]} 3. d4 {[%clk 0:00:29.7]} 3... cxd4 {[%clk 0:02:54.1]}
4. c3 {[%clk 0:00:30.6]} 4... d3 {[%clk 0:02:52.6]} 5. Qxd3 {[%clk 0:00:29.8]}
5... Nc6 {[%clk 0:02:52.6]} 6. Nf3 {[%clk 0:00:30.4]} 6... Qc7 {[%clk
0:02:50.8]} 7. Bg5 {[%clk 0:00:30.1]} 7... Nf6 {[%clk 0:02:49.2]} 8. Bxf6 {[%clk
0:00:28.5]} 8... gxf6 {[%clk 0:02:48.6]} 9. Nbd2 {[%clk 0:00:29.1]} 9... h5
{[%clk 0:02:40.8]} 10. a3 {[%clk 0:00:29.4]} 10... h4 {[%clk 0:02:40.2]} 11. h3
{[%clk 0:00:29.3]} 11... Qf4 {[%clk 0:02:39.3]} 12. O-O-O {[%clk 0:00:30.2]}
12... Rg8 {[%clk 0:02:32.4]} 13. Kb1 {[%clk 0:00:30.5]} 13... a6 {[%clk
0:02:30]} 14. Rhg1 {[%clk 0:00:30.3]} 14... b5 {[%clk 0:02:29.5]} 15. Ba2 {[%clk
0:00:31.2]} 15... Bb7 {[%clk 0:02:23]} 16. Nb3 {[%clk 0:00:31.4]} 16... Rd8
{[%clk 0:02:21.7]} 17. Nbd4 {[%clk 0:00:30.2]} 17... Ne5 {[%clk 0:02:20.7]} 18.
Nxe5 {[%clk 0:00:29.1]} 18... Bxe4 {[%clk 0:02:19.9]} 19. Nef3 {[%clk
0:00:25.4]} 19... Bxd3+ {[%clk 0:02:18.3]} 20. Rxd3 {[%clk 0:00:26.3]} 20... Bc5
{[%clk 0:02:17.5]} 21. Rgd1 {[%clk 0:00:26]} 21... d5 {[%clk 0:02:05.9]} 22. Ne2
{[%clk 0:00:25.5]} 22... Qf5 {[%clk 0:02:02.6]} 23. Ka1 {[%clk 0:00:24.1]} 23...
Bxf2 {[%clk 0:02:02]} 24. Bb1 {[%clk 0:00:20.6]} 24... Qh5 {[%clk 0:01:39.3]}
25. Rf1 {[%clk 0:00:21.5]} 25... Bc5 {[%clk 0:01:32.1]} 26. Nf4 {[%clk
0:00:21.9]} 26... Qh6 {[%clk 0:01:31.6]} 27. Ne2 {[%clk 0:00:21.2]} 27... Rxg2
{[%clk 0:01:29.7]} 28. Ned4 {[%clk 0:00:21]} 28... Bxd4 {[%clk 0:01:28.8]} 29.
Nxd4 {[%clk 0:00:20.9]} 29... Rg3 {[%clk 0:01:27.9]} 30. Rdd1 {[%clk 0:00:20.3]}
30... Rxh3 {[%clk 0:01:25.3]} 31. Rfe1 {[%clk 0:00:20.8]} 31... Re3 {[%clk
0:01:24.7]} 32. Rf1 {[%clk 0:00:19.9]} 32... h3 {[%clk 0:01:24]} 33. Rh1 {[%clk
0:00:20.8]} 33... Kd7 {[%clk 0:01:20.3]} 34. Nc2 {[%clk 0:00:21.7]} 34... Rg3
{[%clk 0:01:16.7]} 35. Nb4 {[%clk 0:00:22.1]} 35... a5 {[%clk 0:01:14.2]} 36.
Nd3 {[%clk 0:00:21.3]} 36... Rh8 {[%clk 0:01:13.1]} 37. Nc5+ {[%clk 0:00:20.4]}
37... Kc6 {[%clk 0:01:11.2]} 38. Nb3 {[%clk 0:00:21.3]} 38... h2 {[%clk
0:01:09.5]} 39. Nd4+ {[%clk 0:00:22.2]} 39... Kb6 {[%clk 0:01:06.9]} 40. Ne2
{[%clk 0:00:21.9]} 40... Rg2 {[%clk 0:01:06.2]} 41. Nd4 {[%clk 0:00:22]} 41...
Rhg8 {[%clk 0:01:05.4]} 42. Nb3 {[%clk 0:00:21]} 42... Rg1 {[%clk 0:01:05.2]}
43. Rxh2 {[%clk 0:00:21.2]} 43... Qxh2 {[%clk 0:01:04.1]} 44. Rd3 {[%clk
0:00:20.7]} 44... Qh1 {[%clk 0:01:02.2]} 45. Nd2 {[%clk 0:00:21.6]} 45... Rxb1+
{[%clk 0:01:01.6]} 46. Ka2 {[%clk 0:00:22.3]} 46... Ra1+ {[%clk 0:01:00.3]} 47.
Kb3 {[%clk 0:00:22.2]} 47... Qd1# {[%clk 0:01:00.2]} 0-1

[Event "*** Titled Tuesday Blitz"]
[Site "Chess.com"]
[Date "2020.03.03"]
[Round "7"]
[White "Bigfish1995"]
[Black "dusanacns"]
[Result "1-0"]
[WhiteElo "3085"]
[BlackElo "2663"]
[TimeControl "180+1"]
[EndTime "14:15:20 PST"]
[Termination "Bigfish1995 won by resignation"]

1. d4 {[%clk 0:03:00.9]} 1... Nf6 {[%clk 0:02:59.7]} 2. Bf4 {[%clk 0:03:00.2]}
2... d5 {[%clk 0:02:44.8]} 3. e3 {[%clk 0:02:56.8]} 3... e6 {[%clk 0:02:43.3]}
4. Nf3 {[%clk 0:02:56]} 4... Bd6 {[%clk 0:02:35.6]} 5. Bxd6 {[%clk 0:02:55.5]}
5... Qxd6 {[%clk 0:02:30.8]} 6. c4 {[%clk 0:02:55.3]} 6... dxc4 {[%clk 0:02:24]}
7. Nbd2 {[%clk 0:02:52.9]} 7... O-O {[%clk 0:02:07.6]} 8. Nxc4 {[%clk
0:02:51.2]} 8... Qe7 {[%clk 0:02:02.5]} 9. Rc1 {[%clk 0:02:48.7]} 9... Rd8
{[%clk 0:01:55.7]} 10. Nce5 {[%clk 0:02:41.7]} 10... Ne4 {[%clk 0:01:00]} 11.
Bd3 {[%clk 0:02:32.4]} 11... Qb4+ {[%clk 0:00:59.9]} 12. Kf1 {[%clk 0:02:24.8]}
12... Nf6 {[%clk 0:00:57.8]} 13. Ng5 {[%clk 0:02:12.1]} 13... Rf8 {[%clk
0:00:50.2]} 14. Rxc7 {[%clk 0:02:08.9]} 14... Nbd7 {[%clk 0:00:42.6]} 15. Qc2
{[%clk 0:02:07.7]} 15... g6 {[%clk 0:00:26.4]} 16. Ngxf7 {[%clk 0:02:04.3]}
16... Rxf7 {[%clk 0:00:20.4]} 17. Nxf7 {[%clk 0:01:56.9]} 17... Kxf7 {[%clk
0:00:21.3]} 18. Rxc8 {[%clk 0:01:53.4]} 18... Rxc8 {[%clk 0:00:22.2]} 19. Qxc8
{[%clk 0:01:54]} 19... Qxb2 {[%clk 0:00:21.4]} 20. Qc2 {[%clk 0:01:54.5]} 20...
Qa1+ {[%clk 0:00:20.4]} 21. Qb1 {[%clk 0:01:54.7]} 21... Qc3 {[%clk 0:00:18.7]}
22. Ke2 {[%clk 0:01:55]} 22... Nd5 {[%clk 0:00:16.3]} 23. Rc1 {[%clk 0:01:51.7]}
23... Qa5 {[%clk 0:00:15.4]} 24. Qxb7 {[%clk 0:01:47.4]} 24... Nb6 {[%clk
0:00:11.2]} 25. Rc2 {[%clk 0:01:46.1]} 25... Ke7 {[%clk 0:00:10]} 26. h3 {[%clk
0:01:44.1]} 26... Qg5 {[%clk 0:00:09]} 27. Qf3 {[%clk 0:01:40.2]} 27... Qa5
{[%clk 0:00:07.4]} 28. Qf4 {[%clk 0:01:38.2]} 28... Nd5 {[%clk 0:00:06.6]} 29.
Qh4+ {[%clk 0:01:37.9]} 29... Kd6 {[%clk 0:00:05.4]} 30. Qxh7 {[%clk 0:01:33.8]}
30... Nc3+ {[%clk 0:00:05.7]} 31. Kf1 {[%clk 0:01:32.6]} 31... Nxa2 {[%clk
0:00:03.6]} 32. Qxg6 {[%clk 0:01:31.1]} 32... Nb4 {[%clk 0:00:03.8]} 33. Rc1
{[%clk 0:01:27.9]} 33... Qa3 {[%clk 0:00:03.5]} 34. Rd1 {[%clk 0:01:27.9]} 34...
Qb3 {[%clk 0:00:03.9]} 35. Be2 {[%clk 0:01:27.4]} 35... Qc3 {[%clk 0:00:03]} 36.
Qg3+ {[%clk 0:01:27]} 36... Ke7 {[%clk 0:00:02.9]} 37. Qg5+ {[%clk 0:01:27.2]}
37... Kd6 {[%clk 0:00:02.9]} 38. Qa5 {[%clk 0:01:27.2]} 38... Qb3 {[%clk
0:00:02.5]} 39. Qxa7 {[%clk 0:01:25.2]} 39... Nd5 {[%clk 0:00:02.8]} 40. Qa6+
{[%clk 0:01:24.1]} 40... Ke7 {[%clk 0:00:03]} 41. Qc4 {[%clk 0:01:23]} 41... Qa3
{[%clk 0:00:02.1]} 42. Qc1 {[%clk 0:01:21.2]} 42... Qb3 {[%clk 0:00:01.6]} 43.
Qd2 {[%clk 0:01:20.5]} 43... Qb8 {[%clk 0:00:01.6]} 44. Kg1 {[%clk 0:01:19.7]}
44... N7f6 {[%clk 0:00:01]} 45. Bf3 {[%clk 0:01:19.4]} 1-0

[Event "*** Titled Tuesday Blitz"]
[Site "Chess.com"]
[Date "2020.03.03"]
[Round "7"]
[White "ShahMatKanal"]
[Black "Volodar_Murzin"]
[Result "1-0"]
[WhiteElo "2532"]
[BlackElo "2683"]
[TimeControl "180+1"]
[EndTime "14:15:20 PST"]
[Termination "ShahMatKanal won by resignation"]

1. d4 {[%clk 0:03:00.9]} 1... d5 {[%clk 0:02:58.3]} 2. c4 {[%clk 0:02:59.8]}
2... c6 {[%clk 0:02:58.4]} 3. Nf3 {[%clk 0:02:58.7]} 3... Nf6 {[%clk 0:02:58]}
4. e3 {[%clk 0:02:54.8]} 4... a6 {[%clk 0:02:57.5]} 5. Be2 {[%clk 0:02:50.8]}
5... dxc4 {[%clk 0:02:56.9]} 6. Bxc4 {[%clk 0:02:50.7]} 6... b5 {[%clk
0:02:56.9]} 7. Be2 {[%clk 0:02:47.5]} 7... e6 {[%clk 0:02:55.3]} 8. O-O {[%clk
0:02:46.8]} 8... c5 {[%clk 0:02:55.2]} 9. a4 {[%clk 0:02:45]} 9... b4 {[%clk
0:02:53.9]} 10. b3 {[%clk 0:02:41.8]} 10... Bb7 {[%clk 0:02:52.8]} 11. Bb2
{[%clk 0:02:41.9]} 11... Nbd7 {[%clk 0:02:52.6]} 12. Nbd2 {[%clk 0:02:42.1]}
12... Be7 {[%clk 0:02:51.9]} 13. Rc1 {[%clk 0:02:41.1]} 13... O-O {[%clk
0:02:51.2]} 14. Qc2 {[%clk 0:02:40.9]} 14... Rc8 {[%clk 0:02:49.9]} 15. Qb1
{[%clk 0:02:41.1]} 15... Qb6 {[%clk 0:02:47.7]} 16. Nc4 {[%clk 0:02:39.1]} 16...
Qa7 {[%clk 0:02:47.6]} 17. a5 {[%clk 0:02:34.7]} 17... Qa8 {[%clk 0:02:44.4]}
18. Rfd1 {[%clk 0:02:29.4]} 18... Be4 {[%clk 0:02:44.1]} 19. Qa1 {[%clk
0:02:27.7]} 19... Rfd8 {[%clk 0:02:42.3]} 20. dxc5 {[%clk 0:02:08.9]} 20... Rxc5
{[%clk 0:02:40.7]} 21. Nb6 {[%clk 0:02:02.9]} 21... Nxb6 {[%clk 0:02:39]} 22.
axb6 {[%clk 0:01:57.5]} 22... Rxd1+ {[%clk 0:02:34.3]} 23. Bxd1 {[%clk 0:01:43]}
23... Rxc1 {[%clk 0:02:27.4]} 24. Qxc1 {[%clk 0:01:36.5]} 24... Nd5 {[%clk
0:02:24]} 25. Bd4 {[%clk 0:01:24.8]} 25... Qb7 {[%clk 0:02:19.3]} 26. Nd2 {[%clk
0:01:23.5]} 26... Bg6 {[%clk 0:02:15.6]} 27. Bf3 {[%clk 0:01:17.3]} 27... Bd8
{[%clk 0:02:09.2]} 28. Nc4 {[%clk 0:01:15.1]} 28... Qc8 {[%clk 0:02:01.3]} 29.
Qa1 {[%clk 0:01:07.8]} 29... Bd3 {[%clk 0:01:52.5]} 30. Bxg7 {[%clk 0:00:57.2]}
30... Bxc4 {[%clk 0:01:49.4]} 31. bxc4 {[%clk 0:00:57.5]} 31... Nxb6 {[%clk
0:01:48.7]} 32. Bh8 {[%clk 0:00:53]} 32... f6 {[%clk 0:01:47.7]} 33. Bxf6 {[%clk
0:00:52.7]} 33... Nxc4 {[%clk 0:01:48]} 34. Bg4 {[%clk 0:00:49.2]} 34... Kf7
{[%clk 0:01:12.9]} 35. Bh8 {[%clk 0:00:46.5]} 35... Be7 {[%clk 0:00:54.6]} 36.
Bh5+ {[%clk 0:00:43.4]} 36... Kf8 {[%clk 0:00:11]} 1-0

[Event "*** Titled Tuesday Blitz"]
[Site "Chess.com"]
[Date "2020.03.03"]
[Round "7"]
[White "Jbd735"]
[Black "ElGasanov"]
[Result "0-1"]
[WhiteElo "2520"]
[BlackElo "2715"]
[TimeControl "180+1"]
[EndTime "14:15:22 PST"]
[Termination "ElGasanov won by resignation"]

1. e4 {[%clk 0:03:00.7]} 1... c5 {[%clk 0:02:58.9]} 2. Nf3 {[%clk 0:02:59]} 2...
Nc6 {[%clk 0:02:59.3]} 3. d4 {[%clk 0:02:57.8]} 3... cxd4 {[%clk 0:02:59.1]} 4.
Nxd4 {[%clk 0:02:58.7]} 4... Nf6 {[%clk 0:02:59.1]} 5. Nc3 {[%clk 0:02:58.1]}
5... g6 {[%clk 0:02:59.7]} 6. Be2 {[%clk 0:02:53.8]} 6... d6 {[%clk 0:02:52.9]}
7. Be3 {[%clk 0:02:51.4]} 7... Bg7 {[%clk 0:02:53.1]} 8. O-O {[%clk 0:02:50.5]}
8... O-O {[%clk 0:02:52.5]} 9. a4 {[%clk 0:02:38]} 9... Bd7 {[%clk 0:02:34.8]}
10. Nb3 {[%clk 0:02:21.7]} 10... Rc8 {[%clk 0:02:35]} 11. a5 {[%clk 0:02:17.6]}
11... Be6 {[%clk 0:02:27.5]} 12. Nd5 {[%clk 0:01:54.3]} 12... Nxe4 {[%clk
0:02:25.7]} 13. Bf3 {[%clk 0:01:39.3]} 13... Nf6 {[%clk 0:02:16.9]} 14. Nxf6+
{[%clk 0:01:28.3]} 14... Bxf6 {[%clk 0:02:16.7]} 15. c3 {[%clk 0:01:26.2]} 15...
Bxb3 {[%clk 0:02:05.6]} 16. Qxb3 {[%clk 0:01:25.5]} 16... Nxa5 {[%clk
0:02:06.2]} 17. Qb5 {[%clk 0:01:05.8]} 17... b6 {[%clk 0:02:04.2]} 18. b4 {[%clk
0:01:00.3]} 18... Nc4 {[%clk 0:02:00.3]} 19. Bh6 {[%clk 0:00:49.7]} 19... Bg7
{[%clk 0:01:53.6]} 20. Bxg7 {[%clk 0:00:49.2]} 20... Kxg7 {[%clk 0:01:54.2]} 21.
Rxa7 {[%clk 0:00:48.9]} 21... Ne5 {[%clk 0:01:44]} 22. Be2 {[%clk 0:00:28.1]}
22... Rxc3 {[%clk 0:01:36.4]} 23. f4 {[%clk 0:00:24.9]} 23... Nc6 {[%clk
0:01:37]} 24. Rb7 {[%clk 0:00:13.7]} 24... Nd4 {[%clk 0:01:35.2]} 25. Qa6 {[%clk
0:00:12.8]} 25... e6 {[%clk 0:00:57.4]} 26. Bg4 {[%clk 0:00:04.4]} 26... Qh4
{[%clk 0:00:54.4]} 27. Bh3 {[%clk 0:00:02.5]} 27... Rxh3 {[%clk 0:00:43.2]} 28.
gxh3 {[%clk 0:00:02.4]} 28... Qxh3 {[%clk 0:00:43.8]} 29. Qc4 {[%clk 0:00:01.5]}
29... Nf3+ {[%clk 0:00:40]} 30. Rxf3 {[%clk 0:00:01.6]} 30... Qxf3 {[%clk
0:00:40]} 31. Qd4+ {[%clk 0:00:02.3]} 31... e5 {[%clk 0:00:36.7]} 32. fxe5
{[%clk 0:00:01.7]} 32... Qxb7 {[%clk 0:00:35.9]} 33. exd6+ {[%clk 0:00:02.1]}
33... Kg8 {[%clk 0:00:36.1]} 34. d7 {[%clk 0:00:02.1]} 34... Rd8 {[%clk
0:00:36.6]} 0-1

[Event "*** Titled Tuesday Blitz"]
[Site "Chess.com"]
[Date "2020.03.03"]
[Round "7"]
[White "DinaBelenkaya"]
[Black "newauto"]
[Result "1-0"]
[WhiteElo "2283"]
[BlackElo "2022"]
[TimeControl "180+1"]
[EndTime "14:15:27 PST"]
[Termination "DinaBelenkaya won by resignation"]

1. e4 {[%clk 0:02:39.1]} 1... c6 {[%clk 0:03:00.9]} 2. d4 {[%clk 0:02:34.6]}
2... d5 {[%clk 0:03:01.8]} 3. Nc3 {[%clk 0:02:32.4]} 3... dxe4 {[%clk
0:03:01.6]} 4. Nxe4 {[%clk 0:02:31]} 4... Bf5 {[%clk 0:03:02.2]} 5. Ng3 {[%clk
0:02:30.5]} 5... Bg6 {[%clk 0:03:02.8]} 6. h4 {[%clk 0:02:26.9]} 6... h6 {[%clk
0:03:02.7]} 7. Nf3 {[%clk 0:02:26.6]} 7... Nd7 {[%clk 0:03:01.5]} 8. h5 {[%clk
0:02:22.1]} 8... Bh7 {[%clk 0:03:00.9]} 9. Bd3 {[%clk 0:02:23]} 9... Bxd3 {[%clk
0:03:00.7]} 10. Qxd3 {[%clk 0:02:23.9]} 10... e6 {[%clk 0:03:00.9]} 11. Bd2
{[%clk 0:02:22.4]} 11... Ngf6 {[%clk 0:02:58.8]} 12. O-O-O {[%clk 0:02:22.5]}
12... Qc7 {[%clk 0:02:55.6]} 13. Ne4 {[%clk 0:02:22.2]} 13... Nxe4 {[%clk
0:02:54.5]} 14. Qxe4 {[%clk 0:02:22.5]} 14... Nf6 {[%clk 0:02:55.4]} 15. Qe2
{[%clk 0:02:18.6]} 15... O-O-O {[%clk 0:02:55]} 16. c4 {[%clk 0:02:16.8]} 16...
c5 {[%clk 0:02:49.6]} 17. Bc3 {[%clk 0:02:10.5]} 17... Be7 {[%clk 0:02:16.2]}
18. Kb1 {[%clk 0:02:05.7]} 18... a6 {[%clk 0:02:05]} 19. Ne5 {[%clk 0:01:49.4]}
19... Rhf8 {[%clk 0:01:32.9]} 20. Nxf7 {[%clk 0:01:42.9]} 20... Rde8 {[%clk
0:01:23.1]} 21. Qxe6+ {[%clk 0:01:37.6]} 21... Kb8 {[%clk 0:01:22.9]} 22. d5
{[%clk 0:00:55.9]} 22... Bd8 {[%clk 0:01:13.3]} 23. Be5 {[%clk 0:00:49.4]} 23...
Rxe6 {[%clk 0:00:53.6]} 24. Bxc7+ {[%clk 0:00:44.5]} 24... Bxc7 {[%clk
0:00:41.2]} 25. dxe6 {[%clk 0:00:45.4]} 25... Re8 {[%clk 0:00:40.4]} 26. Rhe1
{[%clk 0:00:44.3]} 26... Nxh5 {[%clk 0:00:37.9]} 27. Nd6 {[%clk 0:00:42.9]}
27... Bxd6 {[%clk 0:00:32.6]} 28. Rxd6 {[%clk 0:00:42.2]} 28... Nf4 {[%clk
0:00:33.4]} 29. e7 {[%clk 0:00:40.6]} 29... Kc7 {[%clk 0:00:33.2]} 30. Rd2
{[%clk 0:00:37.8]} 30... Nxg2 {[%clk 0:00:32.3]} 31. Re4 {[%clk 0:00:36.8]}
31... g5 {[%clk 0:00:29.9]} 32. Re5 {[%clk 0:00:36.9]} 32... Nh4 {[%clk
0:00:27.6]} 33. Rxc5+ {[%clk 0:00:36.7]} 33... Kb6 {[%clk 0:00:27.2]} 34. Re5
{[%clk 0:00:36.1]} 34... Nf3 {[%clk 0:00:27.1]} 35. Re6+ {[%clk 0:00:35.1]}
35... Kc5 {[%clk 0:00:26]} 36. Rd8 {[%clk 0:00:34.8]} 1-0

[Event "*** Titled Tuesday Blitz"]
[Site "Chess.com"]
[Date "2020.03.03"]
[Round "7"]
[White "Zubrrr"]
[Black "Aleksandr_Kozak"]
[Result "1-0"]
[WhiteElo "2657"]
[BlackElo "2270"]
[TimeControl "180+1"]
[EndTime "14:15:30 PST"]
[Termination "Zubrrr won by resignation"]

1. c4 {[%clk 0:03:00.9]} 1... g6 {[%clk 0:02:58.6]} 2. g3 {[%clk 0:03:00.6]}
2... Bg7 {[%clk 0:02:58.7]} 3. Bg2 {[%clk 0:03:01.2]} 3... e5 {[%clk 0:02:58.2]}
4. Nc3 {[%clk 0:03:01]} 4... Ne7 {[%clk 0:02:56.7]} 5. Nf3 {[%clk 0:02:59.6]}
5... c5 {[%clk 0:02:53.4]} 6. d3 {[%clk 0:02:57]} 6... Nbc6 {[%clk 0:02:53.2]}
7. O-O {[%clk 0:02:57.1]} 7... O-O {[%clk 0:02:52.3]} 8. Ne1 {[%clk 0:02:55.6]}
8... d6 {[%clk 0:02:41.2]} 9. Nc2 {[%clk 0:02:55.3]} 9... f5 {[%clk 0:02:38.2]}
10. a3 {[%clk 0:02:48]} 10... a5 {[%clk 0:02:36.9]} 11. Ne3 {[%clk 0:02:44.9]}
11... f4 {[%clk 0:02:36.2]} 12. Ned5 {[%clk 0:02:43.8]} 12... g5 {[%clk
0:02:35.6]} 13. e3 {[%clk 0:02:39.3]} 13... Be6 {[%clk 0:01:55.1]} 14. Kh1
{[%clk 0:02:34]} 14... fxe3 {[%clk 0:01:46.1]} 15. fxe3 {[%clk 0:02:27.7]} 15...
Rxf1+ {[%clk 0:01:45.2]} 16. Qxf1 {[%clk 0:02:28.6]} 16... Kh8 {[%clk
0:01:39.1]} 17. Bd2 {[%clk 0:02:23.6]} 17... Nf5 {[%clk 0:01:36.3]} 18. Be4
{[%clk 0:02:16.9]} 18... Nce7 {[%clk 0:01:29.1]} 19. Qh3 {[%clk 0:01:50.3]}
19... Qg8 {[%clk 0:01:18.6]} 20. Nc7 {[%clk 0:01:36.8]} 20... Rf8 {[%clk
0:01:01.8]} 21. Nxe6 {[%clk 0:01:32.5]} 21... Qxe6 {[%clk 0:01:01.5]} 22. Kg1
{[%clk 0:00:57.5]} 22... h6 {[%clk 0:00:59.6]} 23. Rf1 {[%clk 0:00:54.3]} 23...
Rf6 {[%clk 0:00:56.6]} 24. Rf2 {[%clk 0:00:41.1]} 24... Qf7 {[%clk 0:00:49.4]}
25. Bxb7 {[%clk 0:00:34]} 25... Ng6 {[%clk 0:00:26.3]} 26. Bd5 {[%clk 0:00:32]}
26... Qf8 {[%clk 0:00:25.6]} 27. Ne4 {[%clk 0:00:31.5]} 27... Nfe7 {[%clk
0:00:20.1]} 28. Nxf6 {[%clk 0:00:27.2]} 28... Bxf6 {[%clk 0:00:20.7]} 29. Rxf6
{[%clk 0:00:23.8]} 29... Kg7 {[%clk 0:00:21.6]} 30. Rxf8 {[%clk 0:00:23.7]} 1-0